[Event "Late-Titled-Tuesday-Blitz-February-06-2024"]
[Site "Chess.com"]
[Date "2024.02.06"]
[Round "3"]
[White "Lennis93"]
[Black "DonkyDonkyDonkey"]
[Result "0-1"]
[WhiteElo "2679"]
[BlackElo "2934"]
[TimeControl "180+1"]
[EndTime "14:29:26 PST"]
[Termination "DonkyDonkyDonkey won on time"]

1. d4 {[%clk 0:03:00.9]} 1... Nf6 {[%clk 0:02:58.6]} 2. Nf3 {[%clk 0:03:00.9]}
2... g6 {[%clk 0:02:58.5]} 3. c4 {[%clk 0:03:01.2]} 3... Bg7 {[%clk 0:02:58.7]}
4. Nc3 {[%clk 0:03:01.8]} 4... d5 {[%clk 0:02:59.2]} 5. Bf4 {[%clk 0:03:01.9]}
5... O-O {[%clk 0:02:53.4]} 6. Rc1 {[%clk 0:03:02.3]} 6... dxc4 {[%clk
0:02:50.1]} 7. e3 {[%clk 0:03:02.2]} 7... c5 {[%clk 0:02:48.6]} 8. Bxc4 {[%clk
0:03:01.8]} 8... cxd4 {[%clk 0:02:48.4]} 9. Nxd4 {[%clk 0:03:02.7]} 9... Nbd7
{[%clk 0:02:45.1]} 10. Bg3 {[%clk 0:02:15.3]} 10... a6 {[%clk 0:02:40.7]} 11.
O-O {[%clk 0:02:14.7]} 11... Nh5 {[%clk 0:02:34.6]} 12. Bh4 {[%clk 0:02:07.8]}
12... Ne5 {[%clk 0:02:33.9]} 13. Be2 {[%clk 0:02:07.1]} 13... Nf6 {[%clk
0:02:33.9]} 14. Bg3 {[%clk 0:02:04.6]} 14... Neg4 {[%clk 0:02:03.8]} 15. h3
{[%clk 0:02:04.2]} 15... Nh6 {[%clk 0:02:04]} 16. Bf3 {[%clk 0:02:00.9]} 16...
Qe8 {[%clk 0:01:26.7]} 17. Na4 {[%clk 0:01:55.5]} 17... e5 {[%clk 0:01:25.6]}
18. Nb6 {[%clk 0:01:54.8]} 18... exd4 {[%clk 0:01:19.6]} 19. Nxa8 {[%clk
0:01:54.3]} 19... Nf5 {[%clk 0:01:18.9]} 20. Nb6 {[%clk 0:01:45.5]} 20... Be6
{[%clk 0:01:16.3]} 21. exd4 {[%clk 0:01:37.6]} 21... Qb5 {[%clk 0:01:16.1]} 22.
Na4 {[%clk 0:01:18.5]} 22... Nxg3 {[%clk 0:01:14.2]} 23. fxg3 {[%clk 0:01:10.7]}
23... Rd8 {[%clk 0:01:14.5]} 24. b3 {[%clk 0:00:59.7]} 24... Ne8 {[%clk
0:01:10.3]} 25. d5 {[%clk 0:00:57.6]} 25... Bxd5 {[%clk 0:01:05.6]} 26. Rc5
{[%clk 0:00:42.8]} 26... Qb4 {[%clk 0:00:57.6]} 27. Rxd5 {[%clk 0:00:39.3]}
27... Nd6 {[%clk 0:00:58.2]} 28. Kh2 {[%clk 0:00:36.8]} 28... h5 {[%clk
0:00:58.1]} 29. h4 {[%clk 0:00:35.6]} 29... Bf6 {[%clk 0:00:53.6]} 30. Nc5
{[%clk 0:00:34.3]} 30... Kg7 {[%clk 0:00:44.3]} 31. Nd3 {[%clk 0:00:29]} 31...
Qb6 {[%clk 0:00:42.1]} 32. Nf4 {[%clk 0:00:28.5]} 32... Nf5 {[%clk 0:00:40.6]}
33. Rxd8 {[%clk 0:00:27.8]} 33... Bxd8 {[%clk 0:00:41.5]} 34. Nd5 {[%clk
0:00:20.6]} 34... Qc5 {[%clk 0:00:40.4]} 35. Qa1+ {[%clk 0:00:20.2]} 35... f6
{[%clk 0:00:39.7]} 36. Qe1 {[%clk 0:00:19.1]} 36... Qd6 {[%clk 0:00:39.3]} 37.
Be4 {[%clk 0:00:15.1]} 37... Nxh4 {[%clk 0:00:38.7]} 38. Kh1 {[%clk 0:00:14.1]}
38... Nf5 {[%clk 0:00:33.8]} 39. Bxf5 {[%clk 0:00:14.2]} 39... Qxd5 {[%clk
0:00:34.4]} 40. Be4 {[%clk 0:00:14]} 40... Qd6 {[%clk 0:00:34.8]} 41. Bxb7
{[%clk 0:00:13.6]} 41... Bc7 {[%clk 0:00:34.5]} 42. Bf3 {[%clk 0:00:13.3]} 42...
h4 {[%clk 0:00:34.5]} 43. Qf2 {[%clk 0:00:03]} 43... hxg3 {[%clk 0:00:34.4]} 44.
Qe3 {[%clk 0:00:02.4]} 44... Qd8 {[%clk 0:00:34]} 45. Rc1 {[%clk 0:00:01.9]}
45... Bb6 {[%clk 0:00:28.9]} 46. Rd1 {[%clk 0:00:01.1]} 46... Qh8+ {[%clk
0:00:28.8]} 0-1

[Event "Late-Titled-Tuesday-Blitz-February-06-2024"]
[Site "Chess.com"]
[Date "2024.02.06"]
[Round "3"]
[White "reevecanada"]
[Black "BeardedNM"]
[Result "0-1"]
[WhiteElo "2545"]
[BlackElo "2258"]
[TimeControl "180+1"]
[EndTime "14:29:26 PST"]
[Termination "BeardedNM won by checkmate"]

1. e4 {[%clk 0:02:56.7]} 1... e6 {[%clk 0:03:00.3]} 2. Nf3 {[%clk 0:02:55.6]}
2... d5 {[%clk 0:03:00.7]} 3. Nc3 {[%clk 0:02:55.2]} 3... Nf6 {[%clk 0:03:00.6]}
4. e5 {[%clk 0:02:55.2]} 4... Nfd7 {[%clk 0:03:01.1]} 5. d4 {[%clk 0:02:53.9]}
5... c5 {[%clk 0:03:01.6]} 6. Bg5 {[%clk 0:02:53.3]} 6... Qb6 {[%clk 0:03:00.8]}
7. dxc5 {[%clk 0:02:53.8]} 7... Bxc5 {[%clk 0:02:59.9]} 8. Qd2 {[%clk
0:02:54.4]} 8... Nc6 {[%clk 0:02:59.8]} 9. Na4 {[%clk 0:02:53.2]} 9... Bxf2+
{[%clk 0:02:56.5]} 10. Qxf2 {[%clk 0:02:51.7]} 10... Qb4+ {[%clk 0:02:53.6]} 11.
Bd2 {[%clk 0:02:06.1]} 11... Qxa4 {[%clk 0:02:52.7]} 12. Bc3 {[%clk 0:02:05.2]}
12... Qe4+ {[%clk 0:02:11.3]} 13. Kd2 {[%clk 0:01:53.8]} 13... Ndxe5 {[%clk
0:01:40.2]} 14. Nxe5 {[%clk 0:01:49.1]} 14... Nxe5 {[%clk 0:01:40.1]} 15. Re1
{[%clk 0:01:49]} 15... Nc4+ {[%clk 0:01:25.4]} 16. Bxc4 {[%clk 0:01:13]} 16...
Qxc4 {[%clk 0:01:26.3]} 17. Bxg7 {[%clk 0:01:12]} 17... Rg8 {[%clk 0:01:26.3]}
18. Bc3 {[%clk 0:00:47.8]} 18... Bd7 {[%clk 0:01:19.2]} 19. Rhf1 {[%clk
0:00:44.5]} 19... O-O-O {[%clk 0:01:18.1]} 20. Qxa7 {[%clk 0:00:43.1]} 20...
Rxg2+ {[%clk 0:01:08.6]} 21. Kc1 {[%clk 0:00:39.7]} 21... Ba4 {[%clk 0:00:56]}
22. Qa8+ {[%clk 0:00:24.7]} 22... Kc7 {[%clk 0:00:42.7]} 23. Rxf7+ {[%clk
0:00:23]} 23... Rd7 {[%clk 0:00:30.7]} 24. Ba5+ {[%clk 0:00:21.9]} 24... Kd6
{[%clk 0:00:18.6]} 25. Qb8+ {[%clk 0:00:20.2]} 25... Kc5 {[%clk 0:00:17.9]} 26.
Qc8+ {[%clk 0:00:18.4]} 26... Bc6 {[%clk 0:00:17.4]} 27. Qf8+ {[%clk 0:00:09.8]}
27... Kb5 {[%clk 0:00:16.1]} 28. Bc3 {[%clk 0:00:09.9]} 28... Rxf7 {[%clk
0:00:09.1]} 29. Qxf7 {[%clk 0:00:09.6]} 29... Qa4 {[%clk 0:00:08.7]} 30. Qxh7
{[%clk 0:00:07.7]} 30... Qxa2 {[%clk 0:00:08]} 31. Qd3+ {[%clk 0:00:08.6]} 31...
Qc4 {[%clk 0:00:07.6]} 32. Qxc4+ {[%clk 0:00:08.1]} 32... Kxc4 {[%clk 0:00:08]}
33. Rxe6 {[%clk 0:00:08.7]} 33... d4 {[%clk 0:00:08.2]} 34. Be1 {[%clk
0:00:08.4]} 34... Rxh2 {[%clk 0:00:06.7]} 35. b3+ {[%clk 0:00:09]} 35... Kd5
{[%clk 0:00:05.7]} 36. Rg6 {[%clk 0:00:09.5]} 36... Rh1 {[%clk 0:00:05.5]} 37.
Rg5+ {[%clk 0:00:10]} 37... Ke4 {[%clk 0:00:05.6]} 38. Kd2 {[%clk 0:00:10.7]}
38... b5 {[%clk 0:00:03.7]} 39. Bg3 {[%clk 0:00:11.3]} 39... Kf3 {[%clk
0:00:03.4]} 40. Rc5 {[%clk 0:00:11.9]} 40... Kxg3 {[%clk 0:00:02.8]} 41. Rxc6
{[%clk 0:00:12.1]} 41... Kf3 {[%clk 0:00:03]} 42. Kd3 {[%clk 0:00:13]} 42...
Rd1# {[%clk 0:00:02.5]} 0-1

[Event "Late-Titled-Tuesday-Blitz-February-06-2024"]
[Site "Chess.com"]
[Date "2024.02.06"]
[Round "3"]
[White "Englishman_18"]
[Black "fks_stal_mielec"]
[Result "1-0"]
[WhiteElo "2175"]
[BlackElo "2336"]
[TimeControl "180+1"]
[EndTime "14:29:27 PST"]
[Termination "Englishman_18 won by checkmate"]

1. Nf3 {[%clk 0:03:00.9]} 1... c5 {[%clk 0:02:56.5]} 2. c4 {[%clk 0:02:58.6]}
2... g6 {[%clk 0:02:56.3]} 3. Nc3 {[%clk 0:02:56.8]} 3... Bg7 {[%clk 0:02:56.7]}
4. e3 {[%clk 0:02:44.5]} 4... Nc6 {[%clk 0:02:56.9]} 5. d4 {[%clk 0:02:43.2]}
5... cxd4 {[%clk 0:02:55.6]} 6. exd4 {[%clk 0:02:43.2]} 6... d6 {[%clk
0:02:51.3]} 7. d5 {[%clk 0:02:34.3]} 7... Ne5 {[%clk 0:02:50.1]} 8. Be2 {[%clk
0:02:33.6]} 8... Bf5 {[%clk 0:02:45.3]} 9. O-O {[%clk 0:02:31.1]} 9... Nxf3+
{[%clk 0:02:41.8]} 10. Bxf3 {[%clk 0:02:29.5]} 10... Nf6 {[%clk 0:02:42.4]} 11.
Bd2 {[%clk 0:02:19.1]} 11... Qc8 {[%clk 0:02:39.9]} 12. b3 {[%clk 0:02:13.4]}
12... O-O {[%clk 0:02:36.7]} 13. Re1 {[%clk 0:02:09.3]} 13... Re8 {[%clk
0:02:34.6]} 14. Rc1 {[%clk 0:02:05.2]} 14... Qd7 {[%clk 0:02:24.3]} 15. Be3
{[%clk 0:01:52.1]} 15... b6 {[%clk 0:02:15.8]} 16. Nb5 {[%clk 0:01:49.2]} 16...
Qb7 {[%clk 0:02:10.3]} 17. Nd4 {[%clk 0:01:46.6]} 17... Bd7 {[%clk 0:02:06.2]}
18. b4 {[%clk 0:01:46.4]} 18... Rac8 {[%clk 0:02:04.4]} 19. Nc6 {[%clk
0:01:44.3]} 19... Bxc6 {[%clk 0:01:57.4]} 20. dxc6 {[%clk 0:01:43.7]} 20... Qc7
{[%clk 0:01:57.9]} 21. b5 {[%clk 0:01:39.1]} 21... Rcd8 {[%clk 0:01:42.2]} 22.
Bd4 {[%clk 0:00:55.9]} 22... e5 {[%clk 0:01:31.3]} 23. Ba1 {[%clk 0:00:46]}
23... e4 {[%clk 0:01:18]} 24. Bxf6 {[%clk 0:00:32.4]} 24... Bxf6 {[%clk
0:01:00.5]} 25. Bxe4 {[%clk 0:00:31.1]} 25... Bb2 {[%clk 0:00:51.5]} 26. Rc2
{[%clk 0:00:27.1]} 26... Ba3 {[%clk 0:00:50.8]} 27. Rce2 {[%clk 0:00:24.7]}
27... Bb4 {[%clk 0:00:44.5]} 28. Rf1 {[%clk 0:00:20.7]} 28... Re7 {[%clk
0:00:41.3]} 29. Bd5 {[%clk 0:00:20]} 29... Rde8 {[%clk 0:00:40]} 30. Rxe7 {[%clk
0:00:19.4]} 30... Qxe7 {[%clk 0:00:39.8]} 31. Qb3 {[%clk 0:00:19.1]} 31... Bc5
{[%clk 0:00:33.8]} 32. Qf3 {[%clk 0:00:17]} 32... Kg7 {[%clk 0:00:31.5]} 33. h4
{[%clk 0:00:15.6]} 33... Rf8 {[%clk 0:00:26.4]} 34. g3 {[%clk 0:00:13.1]} 34...
Qf6 {[%clk 0:00:20.2]} 35. Qxf6+ {[%clk 0:00:10.2]} 35... Kxf6 {[%clk
0:00:21.1]} 36. Re1 {[%clk 0:00:10.1]} 36... Rd8 {[%clk 0:00:20.1]} 37. Re4
{[%clk 0:00:08.9]} 37... Rc8 {[%clk 0:00:19.9]} 38. Rf4+ {[%clk 0:00:08.9]}
38... Ke7 {[%clk 0:00:19.3]} 39. Rxf7+ {[%clk 0:00:09.4]} 39... Ke8 {[%clk
0:00:20.2]} 40. Rxa7 {[%clk 0:00:09.2]} 40... h5 {[%clk 0:00:17.1]} 41. Rh7
{[%clk 0:00:09.2]} 41... Kf8 {[%clk 0:00:17]} 42. Rh8+ {[%clk 0:00:09.3]} 42...
Kg7 {[%clk 0:00:15.3]} 43. Rxc8 {[%clk 0:00:10.2]} 43... Kh6 {[%clk 0:00:14.7]}
44. Ra8 {[%clk 0:00:10.8]} 44... Bd4 {[%clk 0:00:15]} 45. c7 {[%clk 0:00:10.9]}
45... Bc5 {[%clk 0:00:15.9]} 46. c8=Q {[%clk 0:00:10.7]} 46... Bb4 {[%clk
0:00:16.8]} 47. Qh8# {[%clk 0:00:10.8]} 1-0

[Event "Late-Titled-Tuesday-Blitz-February-06-2024"]
[Site "Chess.com"]
[Date "2024.02.06"]
[Round "3"]
[White "Kostukov_Alex"]
[Black "Mazetovic"]
[Result "0-1"]
[WhiteElo "2285"]
[BlackElo "2606"]
[TimeControl "180+1"]
[EndTime "14:29:28 PST"]
[Termination "Mazetovic won on time"]

1. g3 {[%clk 0:03:00.9]} 1... e5 {[%clk 0:02:55.6]} 2. c4 {[%clk 0:03:00.6]}
2... Nf6 {[%clk 0:02:53.4]} 3. Bg2 {[%clk 0:03:00.5]} 3... c6 {[%clk 0:02:52.3]}
4. a3 {[%clk 0:02:59.6]} 4... d5 {[%clk 0:02:51.9]} 5. cxd5 {[%clk 0:03:00.5]}
5... cxd5 {[%clk 0:02:52]} 6. d4 {[%clk 0:03:01]} 6... e4 {[%clk 0:02:49]} 7.
Bg5 {[%clk 0:03:00.7]} 7... Be6 {[%clk 0:02:46.6]} 8. Nc3 {[%clk 0:03:00.3]}
8... Nc6 {[%clk 0:02:40.5]} 9. Nh3 {[%clk 0:03:00]} 9... Bd6 {[%clk 0:02:28.9]}
10. O-O {[%clk 0:02:55.7]} 10... O-O {[%clk 0:02:17]} 11. Nf4 {[%clk 0:02:44.7]}
11... Bxf4 {[%clk 0:02:12.6]} 12. Bxf4 {[%clk 0:02:32.1]} 12... h6 {[%clk
0:02:11.5]} 13. Rc1 {[%clk 0:02:28.7]} 13... Qb6 {[%clk 0:02:07.5]} 14. Na4
{[%clk 0:02:26.9]} 14... Qxd4 {[%clk 0:02:04.4]} 15. Nc5 {[%clk 0:02:22.1]}
15... Qxb2 {[%clk 0:01:51.2]} 16. Nxe6 {[%clk 0:02:15.9]} 16... fxe6 {[%clk
0:01:49.6]} 17. Rb1 {[%clk 0:02:07.8]} 17... Qxa3 {[%clk 0:01:47.9]} 18. Rxb7
{[%clk 0:02:07.3]} 18... Rf7 {[%clk 0:01:33]} 19. Qb1 {[%clk 0:01:58.8]} 19...
Nd4 {[%clk 0:01:27]} 20. Rxf7 {[%clk 0:01:51.1]} 20... Kxf7 {[%clk 0:01:24.9]}
21. Qb7+ {[%clk 0:01:50.5]} 21... Kg6 {[%clk 0:01:06.8]} 22. Qxa8 {[%clk
0:01:50.2]} 22... Nxe2+ {[%clk 0:01:06.6]} 23. Kh1 {[%clk 0:01:49.5]} 23... Nxf4
{[%clk 0:01:05.9]} 24. gxf4 {[%clk 0:01:50.4]} 24... Qd6 {[%clk 0:01:00.2]} 25.
Qxa7 {[%clk 0:01:36.6]} 25... Qxf4 {[%clk 0:00:50.5]} 26. Qe3 {[%clk 0:01:34.5]}
26... e5 {[%clk 0:00:16.3]} 27. Rg1 {[%clk 0:01:05.1]} 27... Kh7 {[%clk
0:00:15.9]} 28. Bh3 {[%clk 0:00:55.1]} 28... g5 {[%clk 0:00:15.7]} 29. Rb1
{[%clk 0:00:31]} 29... Kg6 {[%clk 0:00:15.3]} 30. Rb6 {[%clk 0:00:20.7]} 30...
d4 {[%clk 0:00:15.4]} 31. Qxf4 {[%clk 0:00:18.5]} 31... gxf4 {[%clk 0:00:15.3]}
32. Bf1 {[%clk 0:00:17]} 32... Kf5 {[%clk 0:00:14.6]} 33. Bh3+ {[%clk
0:00:16.9]} 33... Kg5 {[%clk 0:00:14.5]} 34. Re6 {[%clk 0:00:16.5]} 34... e3
{[%clk 0:00:13.4]} 35. Rxe5+ {[%clk 0:00:13.5]} 35... Kh4 {[%clk 0:00:13.4]} 36.
Bf1 {[%clk 0:00:11.4]} 36... Ng4 {[%clk 0:00:13.3]} 37. Re4 {[%clk 0:00:10.4]}
37... Nxf2+ {[%clk 0:00:13.6]} 38. Kg2 {[%clk 0:00:10.8]} 38... Nxe4 {[%clk
0:00:14.2]} 39. Kf3 {[%clk 0:00:10.8]} 39... Nd2+ {[%clk 0:00:14.5]} 40. Ke2
{[%clk 0:00:10.4]} 40... Nxf1 {[%clk 0:00:14.5]} 41. Kxf1 {[%clk 0:00:11.3]}
41... f3 {[%clk 0:00:15]} 0-1

[Event "Late-Titled-Tuesday-Blitz-February-06-2024"]
[Site "Chess.com"]
[Date "2024.02.06"]
[Round "3"]
[White "Njal28"]
[Black "CarrotsandPizza"]
[Result "1-0"]
[WhiteElo "3012"]
[BlackElo "2520"]
[TimeControl "180+1"]
[EndTime "14:29:29 PST"]
[Termination "Njal28 won on time"]

1. d4 {[%clk 0:03:00.9]} 1... Nf6 {[%clk 0:02:59.6]} 2. c4 {[%clk 0:03:01.3]}
2... g6 {[%clk 0:02:59.7]} 3. Nc3 {[%clk 0:03:01.7]} 3... Bg7 {[%clk 0:02:59.9]}
4. e4 {[%clk 0:03:01.6]} 4... d6 {[%clk 0:03:00.2]} 5. Be2 {[%clk 0:03:02]} 5...
O-O {[%clk 0:03:00.1]} 6. Nf3 {[%clk 0:03:02.6]} 6... Na6 {[%clk 0:02:59.8]} 7.
O-O {[%clk 0:03:00.9]} 7... e5 {[%clk 0:02:59.7]} 8. Re1 {[%clk 0:03:00.8]} 8...
c6 {[%clk 0:02:59.7]} 9. Be3 {[%clk 0:02:59.7]} 9... Qe7 {[%clk 0:02:55.2]} 10.
h3 {[%clk 0:02:55.3]} 10... exd4 {[%clk 0:02:54.6]} 11. Bxd4 {[%clk 0:02:54.8]}
11... Re8 {[%clk 0:02:52.9]} 12. Bf1 {[%clk 0:02:51.3]} 12... h6 {[%clk
0:02:39.3]} 13. Rb1 {[%clk 0:02:50.4]} 13... Nc5 {[%clk 0:02:29.8]} 14. Qc2
{[%clk 0:02:23.6]} 14... a5 {[%clk 0:02:27]} 15. Rbd1 {[%clk 0:02:21]} 15... Bd7
{[%clk 0:02:18.2]} 16. b3 {[%clk 0:02:13.8]} 16... Rad8 {[%clk 0:02:15.9]} 17.
Bxc5 {[%clk 0:00:50.6]} 17... dxc5 {[%clk 0:02:14.2]} 18. e5 {[%clk 0:00:51.5]}
18... Nh7 {[%clk 0:02:13.8]} 19. Qc1 {[%clk 0:00:47.7]} 19... Bf5 {[%clk
0:02:11.1]} 20. Rxd8 {[%clk 0:00:42.9]} 20... Qxd8 {[%clk 0:02:04.8]} 21. g4
{[%clk 0:00:43.8]} 21... Bc8 {[%clk 0:01:59.7]} 22. Ne4 {[%clk 0:00:34.2]} 22...
Ng5 {[%clk 0:01:53.7]} 23. Nfxg5 {[%clk 0:00:30.5]} 23... hxg5 {[%clk
0:01:54.6]} 24. Nf6+ {[%clk 0:00:20.2]} 24... Bxf6 {[%clk 0:01:50.6]} 25. exf6
{[%clk 0:00:20.7]} 25... Rxe1 {[%clk 0:01:46.6]} 26. Qxe1 {[%clk 0:00:21.6]}
26... Be6 {[%clk 0:01:46.5]} 27. Qe5 {[%clk 0:00:19.6]} 27... Qd4 {[%clk
0:01:14.3]} 28. Qxg5 {[%clk 0:00:18.7]} 28... a4 {[%clk 0:01:14.9]} 29. bxa4
{[%clk 0:00:19.5]} 29... Kf8 {[%clk 0:01:05.8]} 30. Qh4 {[%clk 0:00:15.8]} 30...
Ke8 {[%clk 0:01:05.9]} 31. Qh8+ {[%clk 0:00:15.9]} 31... Kd7 {[%clk 0:01:06.1]}
32. Qb8 {[%clk 0:00:16.3]} 32... Qxf6 {[%clk 0:01:02.6]} 33. Qxb7+ {[%clk
0:00:16.6]} 33... Kd6 {[%clk 0:01:03.3]} 34. Qb8+ {[%clk 0:00:17]} 34... Kd7
{[%clk 0:01:02.8]} 35. a5 {[%clk 0:00:17.6]} 35... Qa1 {[%clk 0:01:02]} 36. Qb3
{[%clk 0:00:09.4]} 36... Qe1 {[%clk 0:00:58.9]} 37. a6 {[%clk 0:00:09.5]} 37...
Qa5 {[%clk 0:00:56.7]} 38. Qb7+ {[%clk 0:00:10.1]} 38... Kd6 {[%clk 0:00:57.3]}
39. Qb8+ {[%clk 0:00:09]} 39... Ke7 {[%clk 0:00:56.4]} 40. a7 {[%clk 0:00:08.7]}
1-0

[Event "Late-Titled-Tuesday-Blitz-February-06-2024"]
[Site "Chess.com"]
[Date "2024.02.06"]
[Round "3"]
[White "TimGrutter03"]
[Black "MikaelyanArman"]
[Result "0-1"]
[WhiteElo "2588"]
[BlackElo "2859"]
[TimeControl "180+1"]
[EndTime "14:29:30 PST"]
[Termination "MikaelyanArman won on time"]

1. c4 {[%clk 0:03:00.9]} 1... Nf6 {[%clk 0:03:00.4]} 2. Nf3 {[%clk 0:03:01.2]}
2... d6 {[%clk 0:03:01]} 3. g3 {[%clk 0:03:01.6]} 3... g6 {[%clk 0:03:00.4]} 4.
Bg2 {[%clk 0:03:01.6]} 4... Bg7 {[%clk 0:03:01.1]} 5. O-O {[%clk 0:03:01.8]}
5... O-O {[%clk 0:03:02]} 6. d4 {[%clk 0:03:00.6]} 6... a6 {[%clk 0:02:59.3]} 7.
Nc3 {[%clk 0:02:53.9]} 7... c6 {[%clk 0:02:58.6]} 8. e4 {[%clk 0:02:48.5]} 8...
Bg4 {[%clk 0:02:58.8]} 9. h3 {[%clk 0:02:42.6]} 9... Bxf3 {[%clk 0:02:59.2]} 10.
Bxf3 {[%clk 0:02:43.5]} 10... Nbd7 {[%clk 0:02:58.9]} 11. Bg2 {[%clk 0:02:40]}
11... e5 {[%clk 0:02:58.3]} 12. d5 {[%clk 0:02:40.7]} 12... c5 {[%clk
0:02:56.8]} 13. b3 {[%clk 0:02:34.8]} 13... Nh5 {[%clk 0:02:46.5]} 14. Bb2
{[%clk 0:02:32.5]} 14... Qe8 {[%clk 0:02:42.3]} 15. Bf3 {[%clk 0:02:29.6]} 15...
Nhf6 {[%clk 0:02:30.9]} 16. a3 {[%clk 0:02:29.4]} 16... Kh8 {[%clk 0:02:29]} 17.
b4 {[%clk 0:02:17.1]} 17... Rc8 {[%clk 0:02:18.7]} 18. Qd3 {[%clk 0:02:14.7]}
18... Nb6 {[%clk 0:02:06]} 19. b5 {[%clk 0:02:02.3]} 19... a5 {[%clk 0:02:05.4]}
20. a4 {[%clk 0:01:51.8]} 20... Ng8 {[%clk 0:02:04.3]} 21. Bg4 {[%clk
0:01:47.3]} 21... f5 {[%clk 0:01:59.3]} 22. exf5 {[%clk 0:01:42.4]} 22... e4
{[%clk 0:02:00.2]} 23. Qe2 {[%clk 0:01:15]} 23... gxf5 {[%clk 0:01:58]} 24. Bh5
{[%clk 0:01:15.4]} 24... Qe7 {[%clk 0:01:53.9]} 25. f3 {[%clk 0:01:06.3]} 25...
Qg5 {[%clk 0:01:51.5]} 26. g4 {[%clk 0:01:01.6]} 26... exf3 {[%clk 0:01:41.9]}
27. Rxf3 {[%clk 0:00:59.5]} 27... fxg4 {[%clk 0:01:39.5]} 28. hxg4 {[%clk
0:00:50.3]} 28... Rxf3 {[%clk 0:01:36.5]} 29. Qxf3 {[%clk 0:00:49.8]} 29... Nxc4
{[%clk 0:01:36.6]} 30. Ne4 {[%clk 0:00:46.7]} 30... Qxd5 {[%clk 0:01:14.3]} 31.
Bxg7+ {[%clk 0:00:18.5]} 31... Kxg7 {[%clk 0:01:15.2]} 32. Rd1 {[%clk
0:00:15.6]} 32... Ne5 {[%clk 0:00:45]} 33. Rxd5 {[%clk 0:00:09.6]} 33... Nxf3+
{[%clk 0:00:45.3]} 34. Kf2 {[%clk 0:00:10.1]} 34... Rf8 {[%clk 0:00:43.5]} 35.
Rxd6 {[%clk 0:00:07.6]} 35... Nd2+ {[%clk 0:00:41]} 36. Kg2 {[%clk 0:00:01.3]}
36... Nxe4 {[%clk 0:00:40.6]} 37. Rd7+ {[%clk 0:00:02]} 37... Kh6 {[%clk
0:00:37]} 38. Rxb7 {[%clk 0:00:02.5]} 38... Rf2+ {[%clk 0:00:35]} 39. Kg1 {[%clk
0:00:02.2]} 39... Ngf6 {[%clk 0:00:31.9]} 40. Rc7 {[%clk 0:00:02.2]} 40... Rb2
{[%clk 0:00:29.8]} 41. Rc6 {[%clk 0:00:01.5]} 41... Kg5 {[%clk 0:00:30.1]} 42.
Bf7 {[%clk 0:00:01.6]} 42... Nxg4 {[%clk 0:00:28.2]} 43. Bd5 {[%clk 0:00:02.2]}
43... Ng3 {[%clk 0:00:25.1]} 44. Rxc5 {[%clk 0:00:01.5]} 44... Ne3 {[%clk
0:00:21.3]} 45. Bf3+ {[%clk 0:00:01.6]} 45... Kf4 {[%clk 0:00:21.5]} 0-1

[Event "Late-Titled-Tuesday-Blitz-February-06-2024"]
[Site "Chess.com"]
[Date "2024.02.06"]
[Round "3"]
[White "ural58"]
[Black "GeorgiosSouleidis"]
[Result "0-1"]
[WhiteElo "2472"]
[BlackElo "2698"]
[TimeControl "180+1"]
[EndTime "14:29:30 PST"]
[Termination "GeorgiosSouleidis won by resignation"]

1. e4 {[%clk 0:02:53.8]} 1... c5 {[%clk 0:03:00.1]} 2. b3 {[%clk 0:02:50.7]}
2... e6 {[%clk 0:02:59.6]} 3. Nf3 {[%clk 0:02:48.4]} 3... a6 {[%clk 0:03:00]} 4.
Bb2 {[%clk 0:02:47.6]} 4... d6 {[%clk 0:02:55.8]} 5. d4 {[%clk 0:02:47.1]} 5...
cxd4 {[%clk 0:02:55.8]} 6. Nxd4 {[%clk 0:02:47]} 6... Nf6 {[%clk 0:02:56.2]} 7.
Nc3 {[%clk 0:02:39.1]} 7... Be7 {[%clk 0:02:56]} 8. Qd2 {[%clk 0:02:34.3]} 8...
Qc7 {[%clk 0:02:55.9]} 9. O-O-O {[%clk 0:02:33]} 9... Nc6 {[%clk 0:02:56.2]} 10.
Nxc6 {[%clk 0:02:32.5]} 10... Qxc6 {[%clk 0:02:52.2]} 11. f3 {[%clk 0:02:25.1]}
11... O-O {[%clk 0:02:52.2]} 12. g4 {[%clk 0:02:24.6]} 12... b5 {[%clk
0:02:46.4]} 13. Ne2 {[%clk 0:02:18.2]} 13... e5 {[%clk 0:02:32.7]} 14. g5 {[%clk
0:02:13]} 14... Nh5 {[%clk 0:02:29]} 15. h4 {[%clk 0:02:08.8]} 15... Be6 {[%clk
0:02:27.7]} 16. Bh3 {[%clk 0:02:07.2]} 16... Rac8 {[%clk 0:02:20.1]} 17. Kb1
{[%clk 0:02:04.8]} 17... a5 {[%clk 0:02:17.2]} 18. Rc1 {[%clk 0:02:02.1]} 18...
a4 {[%clk 0:02:16.3]} 19. g6 {[%clk 0:01:36]} 19... hxg6 {[%clk 0:02:12.6]} 20.
Bxe6 {[%clk 0:01:35.8]} 20... fxe6 {[%clk 0:02:12.4]} 21. Rhg1 {[%clk 0:01:35]}
21... Kh7 {[%clk 0:01:57.7]} 22. Rg4 {[%clk 0:01:04.6]} 22... Rxf3 {[%clk
0:01:41.6]} 23. Rcg1 {[%clk 0:01:02.1]} 23... Rf6 {[%clk 0:00:51.5]} 24. Ng3
{[%clk 0:00:53.1]} 24... Nxg3 {[%clk 0:00:51.5]} 25. R4xg3 {[%clk 0:00:52.6]}
25... axb3 {[%clk 0:00:45.9]} 26. axb3 {[%clk 0:00:48]} 26... Qxe4 {[%clk
0:00:46]} 27. h5 {[%clk 0:00:46.2]} 27... g5 {[%clk 0:00:28.8]} 28. Rxg5 {[%clk
0:00:39.4]} 28... Rf1+ {[%clk 0:00:28.8]} 29. Rxf1 {[%clk 0:00:33.1]} 29... Bxg5
{[%clk 0:00:29.2]} 30. Qf2 {[%clk 0:00:15.6]} 30... Bf4 {[%clk 0:00:27.8]} 31.
Rg1 {[%clk 0:00:11.9]} 31... Be3 {[%clk 0:00:20.8]} 32. Qg2 {[%clk 0:00:10.7]}
32... Qxg2 {[%clk 0:00:20.7]} 33. Rxg2 {[%clk 0:00:11.6]} 33... Bh6 {[%clk
0:00:20.1]} 34. Rg1 {[%clk 0:00:09.1]} 34... Rf8 {[%clk 0:00:19.1]} 35. Rd1
{[%clk 0:00:09.1]} 35... e4 {[%clk 0:00:18.7]} 36. Rxd6 {[%clk 0:00:09]} 36...
Rf1+ {[%clk 0:00:18.6]} 37. Ka2 {[%clk 0:00:08]} 37... Rf2 {[%clk 0:00:17.6]}
38. Rxe6 {[%clk 0:00:07.4]} 38... e3 {[%clk 0:00:17.7]} 39. Ka3 {[%clk
0:00:05.2]} 39... Rxc2 {[%clk 0:00:17.8]} 40. Bd4 {[%clk 0:00:04.8]} 40... e2
{[%clk 0:00:17.3]} 41. Kb4 {[%clk 0:00:04.1]} 41... Bd2+ {[%clk 0:00:16.9]} 42.
Kxb5 {[%clk 0:00:03.8]} 42... e1=Q {[%clk 0:00:16.9]} 0-1